bitfinex/quotes_SOLUSD_20220306
["timestamp","ask_amount","ask_price","bid_price","bid_amount"]
[1646546945812,52.05294105,88.455,88.42,67.05944372]
[1646546947012,52.05294105,88.455,88.42,16.36]
[1646546947630,52.05294105,88.455,88.411,22.6332]
[1646546949436,52.05294105,88.455,88.412,5.652]
[1646546950940,1.5414192,88.452,88.412,5.652]
[1646546951136,1.5414192,88.45,88.382,5.654]
[1646546951338,1.5414192,88.44,88.382,5.654]
[1646546951541,1.5414192,88.439,88.382,5.654]
[1646546951739,1.5414192,88.44,88.383,49.11977138]
[1646546951942,1.5414192,88.439,88.384,5.655]
[1646546952441,1.5414192,88.438,88.384,5.655]
[1646546952639,1.5414192,88.439,88.384,5.655]
[1646546952940,1.5414192,88.438,88.384,5.655]
[1646546953139,1.5414192,88.438,88.385,24.3747]
[1646546953539,1.5414192,88.438,88.386,5.655]
[1646546953741,1.5414192,88.439,88.386,5.655]
[1646546953939,1.5414192,88.44,88.386,5.655]
[1646546954139,1.5414192,88.439,88.386,5.655]
[1646546955043,1.5414192,88.438,88.386,5.655]
[1646546955444,1.5414192,88.44,88.386,5.655]
[1646546956041,1.5414192,88.439,88.386,5.655]
[1646546956642,1.5414192,88.439,88.385,24.3747]
[1646546957844,1.5414192,88.44,88.385,24.3747]
[1646546958542,1.5414192,88.439,88.385,24.3747]
[1646546959445,1.5414192,88.438,88.385,24.3747]
[1646546960049,1.5414192,88.439,88.385,24.3747]
[1646546960249,1.5414192,88.438,88.386,5.655]
[1646546962252,1.5414192,88.438,88.385,24.3747]
[1646546962448,1.5414192,88.437,88.385,24.3747]
[1646546963049,1.5414192,88.438,88.385,24.3747]
[1646546963449,24.1146,88.451,88.385,27.21083526]
[1646546963450,1.5414192,88.437,88.385,27.21083526]
[1646546963649,1.5414192,88.438,88.385,27.21083526]
[1646546964251,1.5414192,88.438,88.386,5.655]
[1646546964652,1.5414192,88.437,88.386,5.655]
[1646546965251,1.5414192,88.437,88.385,24.3747]
[1646546965852,1.5414192,88.438,88.385,24.3747]
[1646546966052,1.5414192,88.437,88.385,24.3747]
[1646546967754,1.5414192,88.436,88.385,24.3747]
[1646546968753,24.1146,88.451,88.386,8.49113526]
[1646546968754,1.5414192,88.438,88.386,8.49113526]
[1646546969154,1.5414192,88.438,88.387,26.35459379]
[1646546969453,1.5414192,88.438,88.388,5.655]
[1646546970755,1.5414192,88.437,88.39,16.36]
[1646546970955,1.5414192,88.437,88.391,5.655]
[1646546971155,1.5414192,88.438,88.391,5.655]
[1646546972460,1.5414192,88.437,88.391,5.655]
[1646546974260,1.5414192,88.438,88.391,5.655]
[1646546974861,1.5414192,88.437,88.391,5.655]
[1646546977263,1.5414192,88.434,88.391,5.655]
[1646546978565,1.5414192,88.436,88.391,5.655]
[1646546978969,1.5414192,88.437,88.391,5.655]
[1646546979166,1.5414192,88.439,88.392,29.19072905]
[1646546979567,1.5414192,88.439,88.391,5.655]
[1646546979568,1.5414192,88.445,88.393,29.19072905]
[1646546979968,1.5414192,88.445,88.394,29.19072905]
[1646546980368,1.5414192,88.441,88.395,29.19072905]
[1646546980571,1.5414192,88.441,88.396,23.6467]
[1646546980769,1.5414192,88.441,88.4,16.36]
[1646546982371,1.5414192,88.444,88.4,16.36]
[1646546983472,1.5414192,88.445,88.401,26.35459379]
[1646546983673,24.1146,88.451,88.401,26.35459379]
[1646546984073,24.1146,88.451,88.402,2.83613526]
[1646546984476,24.1146,88.451,88.403,26.35459379]
[1646546991196,1.5414192,88.46,88.41,16.9647]
[1646546991395,1.5414192,88.468,88.42,16.36]
[1646546991594,1.5414192,88.474,88.421,23.6261]
[1646546991796,1.5414192,88.474,88.422,56.56]
[1646546991994,1.5414192,88.477,88.422,56.56]
[1646546992195,60.33470478,88.476,88.423,50.59549591]
[1646546994294,1.5414192,88.479,88.423,50.59549591]
[1646546994496,1.5414192,88.479,88.424,26.35459379]
[1646546994695,1.5414192,88.482,88.424,29.19072905]
[1646546994894,9.2656765,88.507,88.425,2.83613526]
[1646546994895,1.5414192,88.484,88.425,2.83613526]
[1646546995096,1.5414192,88.484,88.425,29.19072905]
[1646546995296,51.57192612,88.483,88.425,29.19072905]
[1646546995498,23.3987,88.482,88.426,26.35459379]
[1646546995699,23.3987,88.482,88.43,16.36]
[1646546995898,23.3987,88.482,88.43,25.14]
[1646546996097,23.3987,88.482,88.431,23.4142]
[1646546996900,23.3987,88.482,88.431,23.38205589]
[1646546997605,23.3987,88.482,88.431,49.73664968]
[1646547000505,1.5414192,88.491,88.431,49.73664968]
[1646547000707,1.5414192,88.492,88.432,2.83613526]
[1646547000904,1.5414192,88.498,88.432,9.11613526]
[1646547001105,1.5414192,88.499,88.433,26.35459379]
[1646547001304,1.5414192,88.5,88.433,56.19730385]
[1646547001708,60.37529586,88.499,88.434,56.19730385]
[1646547001905,60.37529586,88.499,88.44,16.9586]
[1646547002105,60.37529586,88.499,88.45,16.36]
[1646547002305,60.37529586,88.499,88.451,83.31460083]
[1646547003005,60.37529586,88.499,88.451,23.3181]
[1646547003208,1.5414192,88.497,88.451,23.3181]
[1646547003405,1.5414192,88.498,88.451,23.3181]
[1646547003807,60.37529586,88.499,88.451,23.3181]
[1646547005308,1.5414192,88.498,88.452,5.651]
[1646547005809,1.5414192,88.497,88.452,5.651]
[1646547006407,1.5414192,88.495,88.452,5.651]
[1646547007209,1.5414192,88.495,88.451,23.3181]
[1646547009009,1.5414192,88.495,88.452,5.651]
[1646547009411,1.5414192,88.493,88.452,5.651]
[1646547009610,1.5414192,88.492,88.452,5.651]
[1646547009810,1.5414192,88.493,88.452,5.651]
[1646547010011,1.5414192,88.492,88.452,5.651]
[1646547011316,1.5414192,88.493,88.452,5.651]
[1646547011514,1.5414192,88.494,88.452,5.651]
[1646547012012,60.37529586,88.499,88.452,5.651]
[1646547012013,1.5414192,88.493,88.452,5.651]
[1646547012513,1.5414192,88.491,88.451,5.651]
[1646547012711,1.5414192,88.49,88.451,5.651]
[1646547015316,1.5414192,88.489,88.451,5.651]
[1646547015719,1.5414192,88.489,88.45,16.36]
[1646547016018,1.5414192,88.49,88.443,5.651]
[1646547016219,1.5414192,88.478,88.443,5.651]
[1646547016428,1.5414192,88.477,88.443,5.651]
[1646547017220,1.5414192,88.477,88.432,5.652]
[1646547017418,1.5414192,88.476,88.432,5.652]
[1646547017823,1.5414192,88.475,88.432,5.652]
[1646547018021,1.5414192,88.476,88.432,5.652]
[1646547018419,1.5414192,88.473,88.432,5.652]
[1646547018621,56.33445767,88.472,88.432,5.652]
[1646547019919,57.87587687,88.472,88.432,5.652]
[1646547020120,56.33445767,88.472,88.432,5.652]
[1646547020520,1.5414192,88.469,88.432,5.652]
[1646547021323,1.5414192,88.468,88.432,5.652]
[1646547021722,1.5414192,88.469,88.432,5.652]
[1646547022642,1.5414192,88.471,88.432,5.652]
[1646547023220,1.5414192,88.477,88.432,8.48813526]
[1646547023720,1.5414192,88.48,88.432,8.48813526]
[1646547023920,1.5414192,88.479,88.432,8.48813526]
[1646547024122,1.5414192,88.478,88.432,8.48813526]
[1646547025522,1.5414192,88.478,88.432,5.652]
[1646547025722,1.5414192,88.478,88.432,8.48813526]
[1646547026125,1.5414192,88.479,88.432,8.48813526]
[1646547026323,1.5414192,88.48,88.432,8.48813526]
[1646547027325,1.5414192,88.482,88.432,8.48813526]
[1646547027723,1.5414192,88.481,88.432,8.48813526]
[1646547030525,1.5414192,88.48,88.432,8.48813526]
[1646547031932,1.5414192,88.481,88.432,8.48813526]
[1646547032329,1.5414192,88.48,88.432,8.48813526]
[1646547033131,1.5414192,88.484,88.432,8.48813526]
[1646547033330,1.5414192,88.484,88.44,16.9586]
[1646547033529,59.6843596,88.487,88.44,16.9586]
[1646547033730,59.6843596,88.487,88.441,2.83613526]
[1646547033929,59.6843596,88.487,88.442,22.7015]
[1646547034330,59.6843596,88.487,88.443,59.39613526]
[1646547034734,59.6843596,88.487,88.442,22.7015]
[1646547035732,1.5414192,88.491,88.442,22.7015]
[1646547035931,1.5414192,88.49,88.442,22.7015]
[1646547036534,1.5414192,88.491,88.442,22.7015]
[1646547036732,55.15722346,88.49,88.442,22.7015]
[1646547037852,1.5414192,88.491,88.442,22.7015]
[1646547038054,1.5414192,88.497,88.45,16.9564]
[1646547038257,1.5414192,88.498,88.45,33.3164]
[1646547038456,1.5414192,88.498,88.451,2.83613526]
[1646547038656,1.5414192,88.502,88.451,2.83613526]
[1646547038955,57.4543621,88.501,88.452,24.5292]
[1646547039355,57.4543621,88.501,88.453,2.83613526]
[1646547039757,24.1119192,88.507,88.453,2.83613526]
[1646547040763,50.44029288,88.506,88.453,2.83613526]
[1646547041363,51.98171208,88.506,88.453,2.83613526]
[1646547041761,50.44029288,88.506,88.453,2.83613526]
[1646547041960,51.98171208,88.506,88.453,2.83613526]
[1646547042360,50.44029288,88.506,88.453,2.83613526]
[1646547042965,22.5705,88.507,88.46,16.9548]
[1646547043163,1.5414192,88.511,88.46,33.3148]
[1646547043366,1.0414192,88.512,88.461,2.83613526]
[1646547043664,3.08193139,88.549,88.462,23.0394]
[1646547043864,47.3988,88.555,88.462,58.1059748]
[1646547043865,3.08193139,88.551,88.462,58.1059748]
[1646547044066,48.50223686,88.548,88.463,52.02389592]
[1646547044265,6.18053755,88.547,88.47,113.1]
[1646547044466,6.18053755,88.547,88.48,89.8703]
[1646547044666,48.50223686,88.548,88.48,99.2403]
[1646547045067,48.50223686,88.548,88.481,2.83613526]
[1646547045265,48.50223686,88.548,88.482,24.6948]
[1646547045665,48.50223686,88.548,88.483,2.83613526]
[1646547046669,48.50223686,88.548,88.49,16.9488]
[1646547046872,48.50223686,88.548,88.491,53.60929392]
[1646547047069,48.50223686,88.548,88.491,83.45200398]
[1646547047273,48.50223686,88.548,88.492,2.83613526]
[1646547047469,48.50223686,88.548,88.492,29.84271006]
[1646547047672,48.50223686,88.548,88.493,24.6948]
[1646547047871,48.00223686,88.548,88.493,24.6948]
[1646547048271,48.00223686,88.548,88.494,2.83613526]
[1646547052271,48.00223686,88.548,88.493,24.6948]
[1646547054974,48.00223686,88.548,88.49,16.36]
[1646547055191,48.00223686,88.548,88.486,17.262]
[1646547061782,47.3988,88.555,88.486,17.262]
[1646547061985,47.3988,88.555,88.49,16.36]
[1646547062382,47.3988,88.555,88.491,2.83613526]
[1646547062582,47.3988,88.555,88.491,29.84271006]
[1646547062784,51.96132115,88.572,88.492,0.47048568]
[1646547062988,3.08193139,88.587,88.511,0.49108114]
[1646547063188,3.08193139,88.591,88.52,16.36]
[1646547063485,3.08193139,88.602,88.521,23.1727]
[1646547063910,113.1,88.6,88.522,52.7264417]
[1646547064086,113.1,88.6,88.522,49.89030644]
[1646547064087,113.1,88.598,88.522,49.89030644]
[1646547064486,3.08193139,88.594,88.5,16.36]
[1646547064688,67.91,88.589,88.49,56.56]
[1646547064886,67.91,88.581,88.487,24.5159]
[1646547065087,113.1,88.57,88.487,24.5159]
[1646547065285,113.1,88.559,88.487,24.5159]
[1646547065485,62.09252432,88.557,88.488,64.62616815]
[1646547066287,113.1,88.556,88.488,64.62616815]
[1646547070086,6.18008586,88.555,88.488,64.62616815]
[1646547070386,113.1,88.554,88.488,64.62616815]
[1646547070989,113.1,88.554,88.471,24.5159]
[1646547071189,3.08193139,88.547,88.471,24.5159]
[1646547071412,67.91,88.542,88.447,2.83613526]
[1646547071588,181.01,88.531,88.447,2.83613526]
[1646547071789,113.1,88.525,88.437,24.1452]
[1646547071991,113.1,88.513,88.433,55.8943206]
[1646547072187,181.01,88.511,88.419,2.83613526]
[1646547072788,181.01,88.509,88.419,2.83613526]
[1646547073189,181.01,88.509,88.43,60.44647567]
[1646547076493,16.9662,88.51,88.43,60.44647567]
[1646547076691,24.8736,88.512,88.43,60.44647567]
[1646547077090,113.1,88.511,88.43,60.44647567]
[1646547077294,24.8736,88.512,88.43,60.44647567]
[1646547077491,24.8736,88.512,88.432,8.48813526]
[1646547080117,113.1,88.511,88.432,8.48813526]
[1646547080718,113.1,88.511,88.432,5.652]
[1646547080917,113.1,88.509,88.432,5.652]
[1646547081719,113.1,88.509,88.431,24.8821]
[1646547082122,113.1,88.509,88.43,60.44647567]
[1646547085019,16.967,88.51,88.43,60.44647567]
[1646547085221,24.8736,88.512,88.431,2.83613526]
[1646547085421,24.8736,88.512,88.432,23.9801]
[1646547085620,113.1,88.511,88.432,23.9801]
[1646547085820,113.1,88.511,88.433,2.83613526]
[1646547086221,113.1,88.511,88.432,23.9801]
[1646547087120,113.1,88.509,88.432,23.9801]
[1646547089120,16.9666,88.51,88.432,23.9801]
[1646547089121,113.1,88.499,88.432,23.9801]
[1646547089322,53.28111119,88.497,88.432,23.9801]
[1646547089524,113.1,88.496,88.421,2.83613526]
[1646547089722,113.1,88.496,88.409,2.83613526]
[1646547089922,113.1,88.494,88.409,2.83613526]
[1646547090522,113.1,88.494,88.41,53.3801629]
[1646547090723,24.4117,88.495,88.41,53.3801629]
[1646547090925,24.4117,88.495,88.411,2.83613526]
[1646547091723,24.4117,88.495,88.412,5.652]
[1646547093530,24.4117,88.495,88.413,2.83613526]
[1646547093725,24.4117,88.495,88.414,5.652]
[1646547094129,24.4117,88.495,88.415,26.81643526]
[1646547094330,24.4117,88.495,88.42,16.36]
[1646547094530,24.4117,88.495,88.421,5.652]
[1646547107842,113.1,88.494,88.421,5.652]
[1646547108044,6.18368855,88.493,88.421,5.652]
[1646547108242,3.08193139,88.514,88.431,113.1]
[1646547108442,3.08193139,88.535,88.432,24.3843]
[1646547108645,3.08193139,88.539,88.432,47.25317615]
[1646547108842,3.08193139,88.541,88.434,56.56]
[1646547109243,181.01,88.539,88.435,76.18349772]
[1646547109443,3.08193139,88.537,88.44,16.36]
[1646547109646,181.01,88.537,88.436,29.90184872]
[1646547109843,3.08396603,88.528,88.436,29.90184872]
[1646547110144,181.01,88.524,88.436,29.90184872]
[1646547110444,113.1,88.52,88.436,29.90184872]
[1646547110645,6.18085734,88.519,88.436,29.90184872]
[1646547111046,113.1,88.52,88.436,29.90184872]
[1646547117152,113.1,88.52,88.435,46.281649]
[1646547117153,1.97982869,88.519,88.435,46.281649]
[1646547117353,113.1,88.517,88.435,46.281649]
[1646547117654,1.97982869,88.516,88.435,46.281649]
[1646547117852,113.1,88.514,88.435,46.281649]
[1646547118053,113.1,88.509,88.435,46.281649]
[1646547118254,130.0681,88.5,88.435,46.281649]
[1646547118555,113.1,88.496,88.435,46.281649]
[1646547121654,113.1,88.492,88.435,46.281649]
[1646547121855,130.0708,88.49,88.435,46.281649]
[1646547122460,113.1,88.488,88.435,46.281649]
[1646547122859,1.97982869,88.487,88.435,46.281649]
[1646547123057,113.1,88.488,88.435,46.281649]
[1646547123457,115.07982869,88.488,88.435,46.281649]
[1646547125858,114.57982869,88.488,88.435,46.281649]
[1646547126258,112.6,88.488,88.435,46.281649]
[1646547126459,23.9201,88.489,88.435,46.281649]
[1646547133379,113.1,88.488,88.435,38.781649]
[1646547133575,113.1,88.488,88.436,5.652]
[1646547139388,113.1,88.488,88.435,38.781649]
[1646547140088,113.1,88.488,88.432,24.3843]
[1646547142593,113.1,88.479,88.395,5.652]
[1646547142800,67.91,88.468,88.395,5.652]
[1646547143000,181.01,88.461,88.395,5.652]
[1646547143203,113.1,88.459,88.395,5.652]
[1646547143401,113.1,88.457,88.395,5.652]
[1646547143602,113.1,88.449,88.354,5.654]
[1646547143802,113.1,88.447,88.355,84.02813206]
[1646547144003,113.1,88.447,88.356,5.656]
[1646547144404,181.01,88.441,88.356,5.656]
[1646547144604,181.01,88.441,88.355,84.02813206]
[1646547145205,181.01,88.439,88.355,84.02813206]
[1646547145404,181.01,88.439,88.356,5.656]
[1646547146906,16.9823,88.43,88.356,5.656]
[1646547147106,199.65321499,88.429,88.356,5.656]
[1646547147607,181.01,88.421,88.356,5.656]
[1646547147808,190.79,88.421,88.356,5.656]
[1646547149007,190.79,88.421,88.357,61.63717096]
[1646547149210,113.1,88.419,88.357,61.63717096]
[1646547149709,24.727,88.418,88.357,61.63717096]
[1646547150208,113.1,88.417,88.357,61.63717096]
[1646547150608,24.727,88.418,88.357,61.63717096]
[1646547151714,113.1,88.417,88.357,61.63717096]
[1646547152412,24.727,88.418,88.357,61.63717096]
[1646547153415,113.1,88.417,88.357,61.63717096]
[1646547154219,24.727,88.418,88.357,61.63717096]
[1646547155915,113.1,88.417,88.357,61.63717096]
[1646547157217,24.727,88.418,88.357,61.63717096]
[1646547162647,59.64280369,88.417,88.357,61.63717096]
[1646547167448,24.727,88.418,88.357,61.63717096]
[1646547167649,1.53603142,88.444,88.357,61.63717096]
[1646547168049,1.53603142,88.445,88.357,61.63717096]
[1646547168349,113.1,88.444,88.357,61.63717096]
[1646547168748,1.53603142,88.44,88.357,61.63717096]
[1646547169549,1.53603142,88.441,88.357,61.63717096]
[1646547169751,1.53603142,88.44,88.357,61.63717096]
[1646547169951,1.53603142,88.439,88.357,61.63717096]
[1646547170750,1.53603142,88.431,88.357,61.63717096]
[1646547170954,62.00315472,88.43,88.357,61.63717096]
[1646547171151,60.4671233,88.43,88.357,61.63717096]
[1646547171762,1.53603142,88.429,88.357,61.63717096]
[1646547172254,62.00315472,88.43,88.357,61.63717096]
[1646547173657,1.53603142,88.429,88.357,61.63717096]
[1646547174360,1.53603142,88.427,88.357,61.63717096]
[1646547174562,1.53603142,88.428,88.357,61.63717096]
[1646547175559,1.53603142,88.427,88.357,61.63717096]
[1646547175759,1.53603142,88.428,88.357,61.63717096]
[1646547176560,113.1,88.426,88.357,61.63717096]
[1646547176759,1.53603142,88.423,88.357,61.63717096]
[1646547177163,1.53603142,88.414,88.357,61.63717096]
[1646547177360,56.29128502,88.413,88.357,61.63717096]
[1646547177560,24.7231,88.412,88.357,61.63717096]
[1646547177760,113.1,88.411,88.357,61.63717096]
[1646547178160,113.1,88.411,88.355,23.9323]
[1646547178361,1.53603142,88.408,88.355,23.9323]
[1646547178560,1.53603142,88.405,88.355,23.9323]
[1646547178762,1.53603142,88.403,88.355,23.9323]
[1646547178960,1.53603142,88.402,88.355,23.9323]
[1646547179160,1.53603142,88.402,88.342,22.7596]
[1646547179362,1.53603142,88.398,88.343,23.4727]
[1646547179560,1.53603142,88.397,88.343,23.4727]
[1646547180463,113.1,88.395,88.343,23.4727]
[1646547181366,56.54293323,88.396,88.343,23.4727]
[1646547191776,1.53603142,88.425,88.343,23.4727]
[1646547191977,24.8645,88.424,88.343,23.4727]
[1646547192180,24.8645,88.424,88.344,5.657]
[1646547192777,51.9624729,88.423,88.345,2.83613526]
[1646547194280,113.1,88.422,88.345,2.83613526]
[1646547195702,120.77,88.422,88.343,23.4727]
[1646547196901,113.1,88.419,88.343,23.4727]
[1646547198299,51.9624729,88.423,88.343,23.4727]
[1646547199501,51.9624729,88.423,88.344,5.657]
[1646547200702,51.9624729,88.423,88.345,2.83613526]
[1646547201506,51.9624729,88.423,88.346,5.657]
[1646547202004,51.9624729,88.423,88.346,2.83613526]
[1646547202305,51.9624729,88.423,88.351,61.82975742]
[1646547209218,51.9624729,88.423,88.351,64.66589268]
[1646547218437,51.9624729,88.423,88.351,61.82975742]
[1646547224163,184.52586011,88.422,88.343,23.4727]
[1646547224361,184.52586011,88.422,88.337,5.656]
[1646547224362,3.08396603,88.415,88.337,5.656]
[1646547224560,1.53603142,88.388,88.337,5.656]
[1646547224960,184.09396603,88.409,88.337,5.656]
[1646547224961,1.53603142,88.384,88.337,5.656]
[1646547225363,113.1,88.382,88.338,55.25111203]
[1646547225763,48.8587652,88.383,88.338,55.25111203]
[1646547227163,23.239,88.388,88.338,55.25111203]
[1646547228364,1.53603142,88.397,88.338,55.25111203]
[1646547228564,1.53603142,88.406,88.339,22.8763]
[1646547228765,22.6422,88.416,88.339,25.71243526]
[1646547228965,22.6422,88.416,88.34,2.83613526]
[1646547229367,64.38724342,88.415,88.34,19.19613526]
[1646547229766,64.38724342,88.415,88.341,59.39613526]
[1646547230266,64.38724342,88.415,88.342,2.83613526]
[1646547233373,64.38724342,88.415,88.35,73.5359]
[1646547233570,64.38724342,88.415,88.35,89.8959]
[1646547233969,64.38724342,88.415,88.352,60.51578302]
[1646547234971,22.9264,88.442,88.352,60.51578302]
[1646547234972,1.53603142,88.434,88.352,60.51578302]
[1646547235174,1.53603142,88.434,88.36,16.9741]
[1646547235373,1.53603142,88.441,88.37,16.36]
[1646547235575,22.9264,88.442,88.371,24.6126]
[1646547235977,56.48190902,88.441,88.372,57.92198734]
[1646547237076,56.48190902,88.441,88.373,2.83613526]
[1646547237777,56.48190902,88.441,88.373,59.39613526]
[1646547238381,56.48190902,88.441,88.38,73.5301]
[1646547238681,56.48190902,88.441,88.38,72.92]
[1646547238877,56.48190902,88.441,88.381,23.9278]
[1646547241383,23.2966,88.44,88.381,23.9278]
[1646547241982,56.48190902,88.441,88.381,23.9278]
[1646547244382,24.1554,88.44,88.381,23.9278]
[1646547247586,1.53603142,88.461,88.382,2.83613526]
[1646547247784,1.53603142,88.461,88.381,23.9278]
[1646547247987,1.53603142,88.458,88.381,23.9278]
[1646547248185,1.53603142,88.456,88.381,23.9278]
[1646547248586,57.28196698,88.455,88.381,23.9278]
[1646547248788,23.1795,88.454,88.381,23.9278]
[1646547248993,24.71553142,88.454,88.381,23.9278]
[1646547250190,1.53603142,88.453,88.381,23.9278]
[1646547250591,1.53603142,88.453,88.382,2.83613526]
[1646547250789,23.1795,88.454,88.382,2.83613526]
[1646547254193,23.1795,88.454,88.381,23.9278]
[1646547254391,113.1,88.453,88.381,23.9278]
[1646547254796,1.53603142,88.45,88.381,23.9278]
[1646547254993,1.53603142,88.449,88.362,2.83613526]
[1646547255193,1.53603142,88.442,88.353,22.7201]
[1646547255392,1.53603142,88.428,88.353,22.7201]
[1646547255593,1.53603142,88.422,88.353,22.7201]
[1646547255810,1.53603142,88.421,88.353,22.7201]
[1646547255994,113.1,88.419,88.354,59.9880984]
[1646547256193,1.53603142,88.417,88.354,59.9880984]
[1646547256393,113.1,88.415,88.354,59.9880984]
[1646547257195,113.1,88.415,88.33,22.7201]
[1646547257597,113.1,88.415,88.331,2.83613526]
[1646547257802,114.63603142,88.415,88.331,2.83613526]
[1646547257997,113.1,88.415,88.331,2.83613526]
[1646547258198,113.1,88.415,88.332,56.7485892]
[1646547258397,1.53603142,88.411,88.332,56.7485892]
[1646547258801,1.53603142,88.413,88.333,2.83613526]
[1646547260099,1.53603142,88.414,88.333,2.83613526]
[1646547260799,1.53603142,88.413,88.333,2.83613526]
[1646547260999,1.53603142,88.414,88.333,2.83613526]
[1646547261201,114.63603142,88.415,88.333,2.83613526]
[1646547261501,1.53603142,88.415,88.333,2.83613526]
[1646547261902,24.293,88.416,88.333,2.83613526]
[1646547261903,25.82903142,88.416,88.333,2.83613526]
[1646547262302,24.293,88.416,88.333,22.2376241]
[1646547262722,24.293,88.416,88.334,2.83613526]
[1646547263122,24.293,88.416,88.34,16.9783]
[1646547263522,24.293,88.416,88.341,2.83613526]
[1646547264326,24.293,88.416,88.342,29.4943]
[1646547266924,24.293,88.416,88.342,23.8373]
[1646547267327,113.1,88.415,88.342,23.8373]
[1646547268826,114.63603142,88.415,88.342,23.8373]
[1646547269928,113.1,88.415,88.342,23.8373]
[1646547270629,114.63603142,88.415,88.342,23.8373]
[1646547270829,113.1,88.415,88.342,23.8373]
[1646547271931,114.63603142,88.415,88.342,23.8373]
[1646547272132,113.1,88.415,88.342,23.8373]
[1646547272538,114.63603142,88.415,88.342,23.8373]
[1646547272733,113.1,88.415,88.342,23.8373]
[1646547273134,24.293,88.416,88.342,23.8373]
[1646547273534,25.82903142,88.416,88.342,23.8373]
[1646547273735,1.53603142,88.415,88.342,23.8373]
[1646547274134,25.82903142,88.416,88.342,23.8373]
[1646547274335,1.53603142,88.415,88.342,23.8373]
[1646547274534,24.293,88.416,88.342,23.8373]
[1646547276738,113.1,88.415,88.342,23.8373]
[1646547278238,114.63603142,88.415,88.342,23.8373]
[1646547278439,113.1,88.415,88.342,23.8373]
[1646547279044,25.82903142,88.416,88.342,23.8373]
[1646547279242,1.53603142,88.414,88.342,23.8373]
[1646547279842,1.53603142,88.412,88.342,23.8373]
[1646547280041,1.53603142,88.413,88.342,23.8373]
[1646547280842,1.53603142,88.41,88.342,23.8373]
[1646547281246,1.53603142,88.411,88.342,23.8373]
[1646547281844,1.53603142,88.412,88.342,23.8373]
[1646547282246,1.53603142,88.411,88.342,23.8373]
[1646547283045,1.53603142,88.405,88.342,23.8373]
[1646547285046,1.53603142,88.398,88.342,23.8373]
[1646547285646,1.53603142,88.397,88.342,23.8373]
[1646547286248,1.53603142,88.398,88.342,23.8373]
[1646547287349,1.53603142,88.397,88.342,23.8373]
[1646547287549,1.53603142,88.398,88.342,23.8373]
[1646547288349,1.53603142,88.394,88.342,23.8373]
[1646547288549,47.03951132,88.393,88.342,23.8373]
[1646547288751,48.57554274,88.393,88.342,23.8373]
[1646547289451,1.53603142,88.392,88.342,23.8373]
[1646547289853,1.53603142,88.39,88.342,23.8373]
[1646547290152,1.53603142,88.389,88.342,23.8373]
[1646547290352,1.53603142,88.388,88.333,5.657]
[1646547290555,1.53603142,88.378,88.333,5.657]
[1646547290755,1.53603142,88.371,88.333,5.657]
[1646547290956,1.53603142,88.369,88.333,5.657]
[1646547291563,1.53603142,88.37,88.333,5.657]
[1646547291757,1.53603142,88.368,88.333,5.657]
[1646547292257,1.53603142,88.375,88.333,5.657]
[1646547292457,1.53603142,88.377,88.334,23.3868]
[1646547292756,1.53603142,88.385,88.334,23.3868]
[1646547292957,1.53603142,88.388,88.334,23.3868]
[1646547293361,24.7067,88.391,88.334,23.3868]
[1646547295963,24.7067,88.391,88.335,5.658]
[1646547299384,24.7067,88.391,88.336,2.83613526]
[1646547299584,24.7067,88.391,88.337,5.658]
[1646547300086,1.53603142,88.394,88.337,8.49413526]
[1646547301285,1.53603142,88.395,88.337,8.49413526]
[1646547301687,1.53603142,88.394,88.337,8.49413526]
[1646547307295,1.53603142,88.395,88.337,8.49413526]
[1646547307895,1.53603142,88.394,88.337,8.49413526]
[1646547309395,1.53603142,88.393,88.337,8.49413526]
[1646547309797,1.53603142,88.392,88.337,8.49413526]
[1646547310199,1.53603142,88.393,88.337,8.49413526]
[1646547310596,1.53603142,88.394,88.337,8.49413526]
[1646547311200,1.53603142,88.394,88.337,2.83613526]
[1646547311398,1.53603142,88.395,88.337,2.83613526]
[1646547311998,1.53603142,88.395,88.34,33.3378]